fUSD/lending_fUSD_20251105
["ID","MTS","AMOUNT","RATE_DAILY","PERIOD"]
[393194325,1762309849237,-999.0,0.00035616,120]
[393194326,1762309849247,-1000.0,0.00035616,5]
[393194327,1762309849258,-162.850782,0.00035616,31]
[393194328,1762309849268,-151.0,0.00035616,31]
[393194329,1762309849277,-156.69,0.00035637,60]
[393194330,1762309849286,-156.31,0.00035637,60]
[393194331,1762309849295,-300.62368071,0.00035728,2]
[393194332,1762309849304,-300.6164531,0.00035735,3]
[393194333,1762309849313,-156.69,0.00035737,60]
[393194334,1762309849322,-156.31,0.00035737,60]
[393194335,1762309849331,-2283.0,0.00035747,2]
[393194336,1762309849341,-220.30341,0.00035752,2]
[393194337,1762309849350,-2283.0,0.00035759,2]
[393194338,1762309849360,-156.69,0.00035837,60]
[393194339,1762309849369,-156.31,0.00035837,60]
[393194340,1762309849378,-162.32794439,0.00035876,2]
[393194341,1762309849388,-151.0,0.00035896,31]
[393194342,1762309849397,-151.0,0.00035896,31]
[393194343,1762309849406,-153.797533,0.00035896,31]
[393194344,1762309849416,-153.899318,0.00035896,31]
[393194345,1762309849425,-157.88646,0.00035896,30]
[393194346,1762309849434,-151.0,0.00035896,31]
[393194347,1762309849444,-2283.0,0.00035906,7]
[393194348,1762309849453,-5888.0,0.00035911,2]
[393194349,1762309849462,-156.69,0.00035937,60]
[393194350,1762309849472,-156.31,0.00035937,60]
[393194351,1762309849482,-8197.5825012,0.00035967,2]
[393194352,1762309849492,-180.0,0.00036,30]
[393194353,1762309849501,-300.0,0.00036,120]
[393194354,1762309849511,-896.01380899,0.00036,2]
[393194355,1762309849520,-220.30341,0.00036017,2]
[393194356,1762309849530,-156.69,0.00036037,60]
[393194357,1762309849539,-156.34,0.00036037,60]
[393194358,1762309849548,-891.28334807,0.00036062,2]
[393194359,1762309849557,-156.69,0.00036137,60]
[393194360,1762309849566,-820.0,0.00036156,2]
[393194361,1762309849575,-1595.0,0.00036156,2]
[393194362,1762309849585,-1272.0,0.00036156,2]
[393194363,1762309849594,-812.0,0.00036156,2]
[393194364,1762309849603,-905.0,0.00036156,2]
[393194365,1762309849612,-1188.0,0.00036156,2]
[393194366,1762309849622,-200.0,0.000362,12]
[393194367,1762309849631,-156.69,0.00036237,60]
[393194368,1762309849645,-182.75,0.00036247,60]
[393194369,1762309849654,-465.17788788,0.00036257,15]
[393194370,1762309849663,-220.30341,0.00036279,2]
[393194371,1762309849672,-891.28334807,0.00036284,2]
[393194372,1762309849682,-156.69,0.00036337,60]
[393194373,1762309849691,-300.62368071,0.00036341,2]
[393194374,1762309849708,-2283.0,0.00036398,2]
[393194375,1762309849722,-156.69,0.00036437,60]
[393194376,1762309849732,-500.0,0.00036488,120]
[393194377,1762309849741,-549.09,0.00036506,2]
[393194378,1762309849751,-156.69,0.00036537,60]
[393194379,1762309849760,-2283.0,0.00036632,2]
[393194380,1762309849770,-891.28334807,0.00036635,2]
[393194381,1762309849779,-156.69,0.00036637,60]
[393194382,1762309849790,-220.30341,0.00036704,2]
[393194383,1762309849801,-2283.0,0.00036709,2]
[393194384,1762309849810,-891.28334807,0.00036717,2]
[393194385,1762309849820,-156.69,0.00036737,60]
[393194386,1762309849829,-3737.46339716,0.000368,14]
[393194387,1762309849841,-220.30341,0.00036802,2]
[393194388,1762309849851,-549.09,0.00036834,2]
[393194389,1762309849860,-156.69,0.00036837,60]
[393194390,1762309849870,-2283.0,0.00036849,7]
[393194391,1762309849879,-1000.0,0.0003692,2]
[393194392,1762309849889,-156.69,0.00036937,60]
[393194393,1762309849899,-300.62368071,0.00036953,2]
[393194394,1762309849908,-1901.92314782,0.0003698,2]
[393194395,1762309849918,-500.0,0.00036989,2]
[393194396,1762309849928,-500.0,0.00036989,2]
[393194397,1762309849938,-500.0,0.00036989,2]
[393194398,1762309849949,-500.0,0.00036989,2]
[393194399,1762309849965,-85426.40467014,0.0003699,30]
[393194400,1762309850186,-386.47700008,0.0003699,30]
[393194401,1762309850202,-735.08841534,0.0003699,30]
[393194402,1762309850219,-456.075,0.0003699,30]
[393194403,1762309850306,-151.0,0.00027397,31]
[393194404,1762309850315,-152.0,0.0003249,3]
[393194405,1762309850325,-151.0,0.00032876,31]
[393194406,1762309850334,-152.0,0.00033984,4]
[393194407,1762309850344,-152.0,0.00035477,5]
[393194408,1762309850354,-152.0,0.00036971,6]
[393194409,1762309850363,-434.567265,0.0003699,30]
[393194410,1762309850379,-588.25715425,0.0003699,30]
[393194411,1762309850390,-2359.80000166,0.0003699,30]
[393194412,1762309850402,-36276.2061082,0.0003699,30]
[393194413,1762309850418,-151.0,0.00027397,31]
[393194414,1762309850427,-374858.67437159,0.0003699,30]
[393194415,1762309850448,-2566.29100436,0.0003699,30]
[393194416,1762309850459,-8018.5,0.0003699,30]
[393194417,1762309850471,-477539.18473488,0.0003699,30]
[393194418,1762309850481,-151.0,0.0003699,31]
[393194419,1762309850490,-151.0,0.0003699,31]
[393194420,1762309850500,-151.0,0.0003699,31]
[393194421,1762309850509,-151.0,0.0003699,31]
[393194422,1762309850519,-151.0,0.0003699,31]
[393194423,1762309850529,-151.0,0.0003699,31]
[393194424,1762309850539,-151.0,0.0003699,14]
[393194425,1762309850548,-151.0,0.0003699,14]
[393194426,1762309850557,-151.0,0.0003699,31]
[393194427,1762309850567,-155.665634,0.0003699,31]
[393194428,1762309850576,-151.0,0.0003699,31]
[393194429,1762309850586,-151.0,0.0003699,31]
[393194430,1762309850595,-151.0,0.0003699,31]
[393194431,1762309850605,-291.198301,0.0003699,28]
[393194432,1762309850615,-291.198301,0.0003699,28]
[393194433,1762309850624,-291.198301,0.0003699,28]
[393194434,1762309850634,-291.198301,0.0003699,28]
[393194435,1762309850647,-151.0,0.0003699,31]
[393194436,1762309850656,-151.0,0.0003699,31]
[393194437,1762309850666,-278.241517,0.0003699,31]
[393194438,1762309850675,-151.0,0.0003699,31]
[393194439,1762309850686,-330.136094,0.0003699,31]
[393194440,1762309850695,-330.136094,0.0003699,31]
[393194441,1762309850706,-330.136094,0.0003699,31]
[393194442,1762309850716,-151.0,0.0003699,31]
[393194443,1762309850728,-330.136094,0.0003699,31]
[393194444,1762309850738,-187.221612,0.0003699,31]
[393194445,1762309850748,-151.0,0.0003699,31]
[393194446,1762309850758,-151.0,0.0003699,31]
[393194447,1762309850767,-151.0,0.0003699,31]
[393194448,1762309850776,-151.0,0.0003699,31]
[393194449,1762309850786,-151.0,0.0003699,31]
[393194450,1762309850796,-151.0,0.0003699,31]
[393194451,1762309850806,-151.0,0.0003699,31]
[393194452,1762309850815,-151.0,0.0003699,31]
[393194453,1762309850826,-151.0,0.0003699,31]
[393194454,1762309850837,-151.0,0.0003699,31]
[393194455,1762309850847,-151.0,0.0003699,31]
[393194456,1762309850856,-151.0,0.0003699,31]
[393194457,1762309850866,-151.0,0.0003699,31]
[393194458,1762309850877,-151.0,0.0003699,31]
[393194459,1762309850887,-151.0,0.0003699,31]
[393194460,1762309850898,-151.0,0.0003699,31]
[393194461,1762309850909,-151.0,0.0003699,31]
[393194462,1762309850919,-151.0,0.0003699,31]
[393194463,1762309850928,-217.205769,0.0003699,31]
[393194464,1762309850938,-217.205769,0.0003699,31]
[393194465,1762309850948,-217.205769,0.0003699,31]
[393194466,1762309850958,-151.0,0.0003699,31]
[393194467,1762309850968,-217.205769,0.0003699,31]
[393194468,1762309850978,-151.0,0.0003699,31]
[393194469,1762309850988,-151.0,0.0003699,31]
[393194470,1762309850997,-151.0,0.0003699,31]
[393194471,1762309851007,-151.0,0.0003699,31]
[393194472,1762309851017,-182.039707,0.0003699,31]
[393194473,1762309851027,-158.55006,0.0003699,31]
[393194474,1762309851037,-568.364366,0.0003699,31]
[393194475,1762309851047,-568.364366,0.0003699,31]
[393194476,1762309851056,-568.364366,0.0003699,31]
[393194477,1762309851066,-151.0,0.0003699,31]
[393194478,1762309851075,-568.364366,0.0003699,31]
[393194479,1762309851085,-252.467454,0.0003699,31]
[393194480,1762309851095,-151.0,0.0003699,31]
[393194481,1762309851104,-252.467454,0.0003699,31]
[393194482,1762309851114,-252.467454,0.0003699,31]
[393194483,1762309851131,-252.467454,0.0003699,31]
[393194484,1762309851141,-151.0,0.0003699,31]
[393194485,1762309851150,-151.0,0.0003699,31]
[393194486,1762309851160,-151.0,0.0003699,31]
[393194487,1762309851170,-151.0,0.0003699,31]
[393194488,1762309851179,-151.0,0.0003699,31]
[393194489,1762309851193,-151.0,0.0003699,31]
[393194490,1762309851203,-151.0,0.0003699,31]
[393194491,1762309851214,-151.0,0.0003699,30]
[393194492,1762309851224,-151.0,0.0003699,31]
[393194493,1762309851234,-201.474529,0.0003699,31]
[393194494,1762309851244,-180.0,0.00037,30]
[393194495,1762309851253,-2000.0,0.00037,2]
[393194496,1762309851263,-2000.0,0.00037,2]
[393194497,1762309851272,-1585.4256,0.00037,2]
[393194498,1762309851282,-158.0,0.00037,90]
[393194499,1762309851292,-151.0,0.00037,31]
[393194500,1762309851301,-151.0,0.00037,31]
[393194501,1762309851311,-151.0,0.00037,31]
[393194502,1762309851321,-151.0,0.00037,31]
[393194503,1762309851331,-432.579819,0.00037,31]
[393194504,1762309851346,-432.579819,0.00037,31]
[393194505,1762309851561,-432.579819,0.00037,31]
[393194506,1762309851572,-432.579819,0.00037,31]
[393194507,1762309851581,-151.0,0.00037,31]
[393194508,1762309851595,-151.0,0.00037,31]
[393194509,1762309851604,-151.0,0.00037,31]
[393194510,1762309851613,-151.0,0.00037,31]
[393194511,1762309851622,-2481.1,0.00037,2]
[393194512,1762309851631,-2000.0,0.00037,2]
[393194513,1762309851644,-500.0,0.00037003,2]
[393194514,1762309851653,-2283.0,0.00037004,2]
[393194515,1762309851662,-891.28334807,0.00037018,2]
[393194516,1762309851671,-2283.0,0.00037025,2]
[393194517,1762309851680,-156.69,0.00037037,60]
[393194518,1762309851690,-7109.51,0.00037055,2]
[393194519,1762309851699,-151.08,0.000371,14]
[393194520,1762309851708,-1315.0,0.00037134,2]
[393194521,1762309851720,-574.0,0.00037134,2]
[393194522,1762309851729,-156.73951549,0.00037137,60]
[393194523,1762309851739,-239.56426196,0.00037143,3]
[393194524,1762309851748,-220.30341,0.00037181,2]
[393194525,1762309851757,-500.0,0.00037277,7]
[393194526,1762309851767,-500.0,0.00037277,7]
[393194527,1762309851776,-500.0,0.00037277,7]
[393194528,1762309851785,-500.0,0.00037277,7]
[393194529,1762309851794,-500.0,0.00037277,7]
[393194530,1762309851803,-500.0,0.00037277,7]
[393194531,1762309851813,-500.0,0.00037277,7]
[393194532,1762309851822,-500.0,0.00037277,7]
[393194533,1762309851831,-500.0,0.00037277,7]
[393194534,1762309851843,-500.0,0.00037277,7]
[393194535,1762309851852,-500.0,0.00037277,7]
[393194536,1762309851862,-500.0,0.00037277,7]
[393194537,1762309851871,-500.0,0.00037277,7]
[393194538,1762309851880,-500.0,0.00037277,7]
[393194539,1762309851889,-500.0,0.00037277,7]
[393194540,1762309851899,-215.02,0.00037277,7]
[393194541,1762309851908,-500.0,0.00037277,7]
[393194542,1762309851917,-500.0,0.00037277,7]
[393194543,1762309851927,-500.0,0.00037277,7]
[393194544,1762309851936,-500.0,0.00037277,7]
[393194545,1762309851945,-414.31,0.00037277,7]
[393194546,1762309851954,-500.0,0.00037277,7]
[393194547,1762309851963,-538.86,0.00037299,120]
[393194548,1762309851973,-580.62,0.000373,120]
[393194549,1762309851983,-549.09,0.00037328,2]
[393194550,1762309851992,-549.09,0.00037328,2]
[393194551,1762309852003,-549.09,0.00037328,2]
[393194552,1762309852012,-549.09,0.00037328,2]
[393194553,1762309852021,-549.09,0.00037328,2]
[393194554,1762309852031,-549.09,0.00037328,2]
[393194555,1762309852040,-830.25443683,0.00037354,2]
[393194556,1762309852050,-1000.0,0.000374,7]
[393194557,1762309852059,-220.30341,0.0003741,2]
[393194558,1762309852068,-300.03,0.00037452,2]
[393194559,1762309852078,-150.0,0.00037452,2]
[393194560,1762309852088,-150.0,0.00037452,2]
[393194561,1762309852098,-150.0,0.00037452,2]
[393194562,1762309852107,-150.0,0.00037452,2]
[393194563,1762309852117,-150.0,0.00037452,2]
[393194564,1762309852127,-150.0,0.00037452,2]
[393194565,1762309852136,-150.0,0.00037452,2]
[393194566,1762309852146,-19590.82,0.00037454,2]
[393194567,1762309852155,-151.0,0.00037454,31]
[393194568,1762309852165,-151.0,0.00037454,31]
[393194569,1762309852174,-151.0,0.00037454,31]
[393194570,1762309852184,-151.0,0.00037454,31]
[393194571,1762309852193,-151.0,0.00037454,31]
[393194572,1762309852203,-151.0,0.00037454,31]
[393194573,1762309852212,-194.804697,0.00037454,31]
[393194574,1762309852221,-151.0,0.00037454,31]
[393194575,1762309852231,-1117.76757996,0.0003751,20]
[393194576,1762309852240,-891.28334807,0.00037531,2]
[393194577,1762309852248,-300.62368071,0.00037565,2]
[393194578,1762309852258,-1000.0,0.00037575,7]
[393194579,1762309852267,-891.28334807,0.00037584,2]
[393194580,1762309852276,-158.0,0.000376,60]
[393194581,1762309852285,-1425.0,0.00037651,2]
[393194582,1762309852295,-150.0,0.00037651,2]
[393194583,1762309852304,-150.0,0.00037651,2]
[393194584,1762309852314,-176.84,0.00037651,2]
[393194585,1762309852323,-150.0,0.00037651,2]
[393194586,1762309852333,-176.84,0.00037651,2]
[393194587,1762309852342,-176.84,0.00037651,2]
[393194588,1762309852352,-150.0,0.00037651,2]
[393194589,1762309852361,-176.84,0.00037651,2]
[393194590,1762309852370,-176.84,0.00037651,2]
[393194591,1762309852380,-176.84,0.00037651,2]
[393194592,1762309852389,-176.84,0.00037651,2]
[393194593,1762309852399,-176.84,0.00037651,2]
[393194594,1762309852408,-151.6271614,0.00037656,2]
[393194595,1762309852418,-310.42328307,0.00037656,2]
[393194596,1762309852427,-151.0,0.00037656,15]
[393194597,1762309852436,-151.0,0.00037656,15]
[393194598,1762309852445,-151.0,0.00037656,15]
[393194599,1762309852454,-549.09,0.00037656,2]
[393194600,1762309852463,-549.09,0.00037656,2]
[393194601,1762309852473,-549.09,0.00037656,2]
[393194602,1762309852482,-549.09,0.00037656,2]
[393194603,1762309852491,-549.09,0.00037656,2]
[393194604,1762309852500,-549.09,0.00037656,2]
[393194605,1762309852510,-549.09,0.00037656,2]
[393194606,1762309852520,-549.09,0.00037656,2]
[393194607,1762309852529,-549.09,0.00037656,2]
[393194608,1762309852540,-549.09,0.00037656,2]
[393194609,1762309852550,-549.09,0.00037656,2]
[393194610,1762309852561,-549.09,0.00037656,2]
[393194611,1762309852570,-549.09,0.00037656,2]
[393194612,1762309852581,-549.09,0.00037656,2]
[393194613,1762309852591,-549.09,0.00037656,2]
[393194614,1762309852600,-549.09,0.00037656,2]
[393194615,1762309852610,-549.09,0.00037656,2]
[393194616,1762309852620,-549.09,0.00037656,2]
[393194617,1762309852631,-549.09,0.00037656,2]
[393194618,1762309852645,-1425.0,0.00037664,2]
[393194619,1762309852655,-1425.0,0.00037665,2]
[393194620,1762309852665,-477.03,0.00037671,2]
[393194621,1762309852675,-1425.0,0.00037674,2]
[393194622,1762309852685,-1000.0,0.00037676,7]
[393194623,1762309852696,-5800.0,0.00037689,2]
[393194624,1762309852706,-5800.0,0.00037697,2]
[393194625,1762309852716,-5800.0,0.00037706,2]
[393194626,1762309852726,-1425.0,0.00037723,2]
[393194627,1762309852737,-150.0,0.00037736,2]
[393194628,1762309852746,-150.0,0.00037736,2]
[393194629,1762309852756,-150.0,0.00037736,2]
[393194630,1762309852766,-150.0,0.00037736,2]
[393194631,1762309852776,-415.63,0.00037736,2]
[393194632,1762309852786,-415.63,0.00037736,2]
[393194633,1762309852796,-209.85,0.00037736,2]
[393194634,1762309852805,-414.89,0.00037736,2]
[393194635,1762309852814,-220.30341,0.00037738,2]
[393194636,1762309852824,-830.25443681,0.00037768,2]
[393194637,1762309852835,-169.01,0.00037808,2]
[393194638,1762309852846,-1425.0,0.00037815,2]
[393194639,1762309852856,-1000.0,0.00037847,7]
[393194640,1762309852865,-1000.0,0.00037851,7]
[393194641,1762309852874,-220.303417,0.00037853,2]
[393194642,1762309852884,-239.38900134,0.0003786,2]
[393194643,1762309852893,-200.0,0.00037868,10]
[393194644,1762309852903,-3213.97108,0.0003789,2]
[393194645,1762309852913,-2570.69413548,0.000379,2]
[393194646,1762309852922,-1000.0,0.00037908,7]
[393194647,1762309852931,-200.0,0.00037919,10]
[393194648,1762309852940,-1000.0,0.0003793,7]
[393194649,1762309852949,-150.0,0.00037947,7]
[393194650,1762309852959,-1456.94118479,0.0003796,2]
[393194651,1762309852967,-28760.6886426,0.0003796,2]
[393194652,1762309852978,-1681.0255726,0.0003796,2]
[393194653,1762309852987,-200.0,0.00037969,10]
[393194654,1762309852996,-891.28334812,0.00037973,2]
[393194655,1762309853005,-162.01367149,0.00037977,11]
[393194656,1762309853015,-4838.8616287,0.00037996,2]
[393194657,1762309853025,-15219.2714605,0.00037996,2]
[393194658,1762309853035,-26560.4441335,0.00037996,2]
[393194659,1762309853045,-30100.488653,0.00037996,2]
[393194660,1762309853054,-170.76139629,0.00038,120]
[393194661,1762309853064,-1219.35715262,0.00038,120]
[393194662,1762309853074,-185.17544795,0.00038,120]
[393194663,1762309853083,-184.81012584,0.00038,120]
[393194664,1762309853096,-210.35144651,0.00038,120]
[393194665,1762309853106,-179.50738991,0.00038,120]
[393194666,1762309853116,-300.0,0.00038,120]
[393194667,1762309853126,-1003.0,0.00038,31]
[393194668,1762309853136,-59391.0,0.00038,7]
[393194669,1762309853147,-166.0,0.00038,30]
[393194670,1762309853156,-407.245394,0.00038,31]
[393194671,1762309853167,-151.0,0.00038,31]
[393194672,1762309853177,-407.245394,0.00038,31]
[393194673,1762309853186,-407.245394,0.00038,31]
[393194674,1762309853195,-171.891948,0.00038,31]
[393194675,1762309853205,-151.0,0.00038,31]
[393194676,1762309853215,-407.245394,0.00038,31]
[393194677,1762309853224,-151.0,0.00038,31]
[393194678,1762309853235,-151.0,0.00038,31]
[393194679,1762309853245,-151.0,0.00038,31]
[393194680,1762309853255,-230.816404,0.00038,31]
[393194681,1762309853264,-151.000006,0.00038,31]
[393194682,1762309853274,-500.0,0.00038001,120]
[393194683,1762309853284,-500.0,0.00038001,120]
[393194684,1762309853293,-500.0,0.00038001,30]
[393194685,1762309853303,-4522.8107083,0.00038002,2]
[393194686,1762309853314,-207612.1507409,0.00038002,2]
[393194687,1762309853324,-151.0,0.00038002,31]
[393194688,1762309853336,-151.0,0.00038002,31]
[393194689,1762309853346,-151.0,0.00038002,31]
[393194690,1762309853357,-229.112047,0.00038002,31]
[393194691,1762309853368,-239.38900133,0.00038021,2]
[393194692,1762309853378,-1425.0,0.00038037,2]
[393194693,1762309853388,-150.0,0.00038055,2]
[393194694,1762309853398,-150.0,0.00038055,2]
[393194695,1762309853408,-150.0,0.00038055,2]
[393194696,1762309853418,-150.0,0.00038055,2]
[393194697,1762309853428,-150.0,0.00038055,2]
[393194698,1762309853438,-150.0,0.00038055,2]
[393194699,1762309853448,-150.0,0.00038055,2]
[393194700,1762309853459,-500.0,0.00038066,120]
[393194701,1762309853469,-500.0,0.00038066,30]
[393194702,1762309853479,-151.0,0.00038072,31]
[393194703,1762309853489,-173.576813,0.00038072,31]
[393194704,1762309853499,-151.0,0.00038072,31]
[393194705,1762309853509,-163.972608,0.00038072,31]
[393194706,1762309853519,-294.714642,0.00038072,31]
[393194707,1762309853532,-155.270578,0.00038072,31]
[393194708,1762309853546,-154.681807,0.00038072,31]
[393194709,1762309853560,-551.59211608,0.00038072,120]
[393194710,1762309853574,-151.0,0.00038072,15]
[393194711,1762309853588,-151.0,0.00038072,15]
[393194712,1762309853600,-151.0,0.00038072,15]
[393194713,1762309853613,-151.0,0.00038072,31]
[393194714,1762309853626,-151.0,0.00038072,31]
[393194715,1762309853641,-151.50657,0.00038072,31]
[393194716,1762309853654,-151.0,0.00038072,31]
[393194717,1762309853666,-151.0,0.00038072,31]
[393194718,1762309853679,-330.136094,0.00038072,31]
[393194719,1762309853692,-330.136094,0.00038072,31]
[393194720,1762309853703,-330.136094,0.00038072,31]
[393194721,1762309853714,-156.755722,0.00038072,31]
[393194722,1762309853729,-330.136094,0.00038072,31]
[393194723,1762309853741,-153.525088,0.00038072,31]
[393194724,1762309853752,-158.274129,0.00038072,31]
[393194725,1762309853763,-151.0,0.00038072,31]
[393194726,1762309853776,-151.0,0.00038072,31]
[393194727,1762309853788,-151.0,0.00038072,31]
[393194728,1762309853800,-151.0,0.00038072,31]
[393194729,1762309853812,-151.0,0.00038072,31]
[393194730,1762309853827,-151.0,0.00038072,31]
[393194731,1762309853842,-151.0,0.00038072,31]
[393194732,1762309853855,-151.0,0.00038072,31]
[393194733,1762309853869,-151.0,0.00038072,31]
[393194734,1762309853880,-250.141516,0.00038072,31]
[393194735,1762309853894,-151.0,0.00038072,31]
[393194736,1762309853908,-151.0,0.00038072,31]
[393194737,1762309853924,-151.0,0.00038072,31]
[393194738,1762309853938,-151.0,0.00038072,31]
[393194739,1762309853951,-151.0,0.00038072,31]
[393194740,1762309853963,-151.0,0.00038072,31]
[393194741,1762309853974,-217.205769,0.00038072,31]
[393194742,1762309853987,-217.205769,0.00038072,31]
[393194743,1762309854000,-217.205769,0.00038072,31]
[393194744,1762309854012,-217.205769,0.00038072,31]
[393194745,1762309854025,-151.0,0.00038072,31]
[393194746,1762309854037,-151.0,0.00038072,31]
[393194747,1762309854050,-162.12037659,0.00038073,7]
[393194748,1762309854061,-538.86,0.00038076,120]
[393194749,1762309854073,-2000.0,0.00038076,2]
[393194750,1762309854087,-2000.0,0.00038076,2]
[393194751,1762309854100,-500.0,0.00038076,120]
[393194752,1762309854112,-500.0,0.00038076,30]
[393194753,1762309854123,-151.0,0.00038076,31]
[393194754,1762309854135,-151.0,0.00038076,31]
[393194755,1762309854147,-151.0,0.00038076,31]
[393194756,1762309854160,-154.277202,0.00038076,31]
[393194757,1762309854178,-151.0,0.00038076,31]
[393194758,1762309854192,-151.0,0.00038076,31]
[393194759,1762309854203,-151.0,0.00038076,31]
[393194760,1762309854215,-151.0,0.00038076,31]
[393194761,1762309854226,-151.0,0.00038076,31]
[393194762,1762309854236,-151.0,0.00038076,31]
[393194763,1762309854248,-151.0,0.00038076,31]
[393194764,1762309854260,-432.579819,0.00038076,31]
[393194765,1762309854275,-432.579819,0.00038076,31]
[393194766,1762309854287,-432.579819,0.00038076,31]
[393194767,1762309854299,-432.579819,0.00038076,31]
[393194768,1762309854310,-151.0,0.00038076,31]
[393194769,1762309854321,-151.0,0.00038076,31]
[393194770,1762309854331,-151.0,0.00038076,31]
[393194771,1762309854344,-151.0,0.00038076,31]
[393194772,1762309854356,-151.0,0.00038076,31]
[393194773,1762309854367,-151.0,0.00038076,31]
[393194774,1762309854378,-151.0,0.00038076,31]
[393194775,1762309854390,-296.065855,0.00038076,31]
[393194776,1762309854401,-151.0,0.00038076,31]
[393194777,1762309854413,-180.686502,0.00038076,31]
[393194778,1762309854424,-151.0,0.00038076,14]
[393194779,1762309854435,-151.0,0.00038076,14]
[393194780,1762309854447,-151.0,0.00038076,31]
[393194781,1762309854458,-151.0,0.00038076,31]
[393194782,1762309854469,-151.0,0.00038076,31]
[393194783,1762309854480,-151.0,0.00038076,31]
[393194784,1762309854490,-291.198301,0.00038076,28]
[393194785,1762309854501,-291.198301,0.00038076,28]
[393194786,1762309854511,-291.198301,0.00038076,28]
[393194787,1762309854521,-291.198301,0.00038076,28]
[393194788,1762309854532,-151.0,0.00038076,31]
[393194789,1762309854546,-151.0,0.00038076,31]
[393194790,1762309854557,-168.849809,0.00038076,31]
[393194791,1762309854568,-568.364366,0.00038076,31]
[393194792,1762309854579,-568.364366,0.00038076,31]
[393194793,1762309854590,-568.364366,0.00038076,31]
[393194794,1762309854600,-294.859152,0.00038076,31]
[393194795,1762309854612,-568.364366,0.00038076,31]
[393194796,1762309854622,-252.467454,0.00038076,31]
[393194797,1762309854632,-165.893534,0.00038076,31]
[393194798,1762309854646,-252.467454,0.00038076,31]
[393194799,1762309854657,-252.467454,0.00038076,31]
[393194800,1762309854668,-252.467454,0.00038076,31]
[393194801,1762309854679,-151.0,0.00038076,31]
[393194802,1762309854690,-260.768611,0.00038076,31]
[393194803,1762309854701,-151.0,0.00038076,31]
[393194804,1762309854712,-151.0,0.00038076,31]
[393194805,1762309854724,-151.0,0.00038076,31]
[393194806,1762309854735,-151.0,0.00038076,31]
[393194807,1762309854745,-151.0,0.00038076,31]
[393194808,1762309854756,-151.0,0.00038076,30]
[393194809,1762309854767,-151.0,0.00038076,31]
[393194810,1762309854779,-1000.0,0.00038077,7]
[393194811,1762309854792,-23842.08846061,0.00038082,31]
[393194812,1762309854805,-271500.61978546,0.00038082,7]
[393194813,1762309854815,-477.03,0.00038082,2]
[393194814,1762309854826,-477.03,0.00038082,2]
[393194815,1762309854838,-477.03,0.00038082,2]
[393194816,1762309854849,-698.44,0.00038082,2]
[393194817,1762309854860,-788.5,0.00038082,2]
[393194818,1762309854871,-477.03,0.00038082,2]
[393194819,1762309854882,-150.0,0.00038098,7]
[393194820,1762309854892,-1000.0,0.00038105,7]
[393194821,1762309854903,-3213.97109,0.0003811,2]
[393194822,1762309854914,-1425.0,0.00038149,2]
[393194823,1762309854925,-1016.6429,0.00038169,2]
[393194824,1762309854936,-2000.0,0.00038169,2]